bitfinex-derivatives/quotes_ETHF0:USTF0_20240924
["timestamp","ask_amount","ask_price","bid_price","bid_amount"]
[1727201649978,1.48073833,2640.8,2640.7,0.3787]
[1727201650386,1.48073833,2640.9,2640.8,0.37869]
[1727201650590,1.48073833,2641.0,2640.6,0.9468]
[1727201650888,0.98810021,2640.9,2640.8,0.37869]
[1727201651191,1.48073833,2641.0,2640.9,0.37867]
[1727201652390,1.48073833,2641.1,2641.0,0.37866]
[1727201653086,1.85938833,2641.1,2640.9,0.37867]
[1727201653287,1.48073833,2641.0,2640.9,0.37867]
[1727201653484,1.48073833,2641.1,2641.0,0.37866]
[1727201654781,1.85938833,2641.1,2640.9,0.37867]
[1727201655178,1.85938833,2641.1,2641.0,0.37866]
[1727201655383,1.85938833,2641.1,2640.9,0.37867]
[1727201655584,1.85938833,2641.1,2640.7,0.3644]
[1727201655585,0.98694073,2641.0,2640.7,0.3644]
[1727201655990,1.48073833,2641.1,2640.8,0.37868]
[1727201655991,0.98694073,2641.1,2640.8,0.37868]
[1727201656299,4.19474073,2641.1,2640.9,0.37867]
[1727201656487,0.98694073,2641.2,2640.9,0.37867]
[1727201656693,1.36557073,2641.2,2640.9,0.37867]
[1727201656996,1.36557073,2641.2,2640.8,0.3741]
[1727201656997,4.19474073,2641.1,2640.8,0.3741]
[1727201657189,0.37868,2640.9,2640.5,0.37873]
[1727201657494,0.98694073,2641.0,2640.4,0.3741]
[1727201657709,4.57338073,2641.1,2640.8,0.37868]
[1727201657996,4.19474073,2641.1,2640.8,0.37868]
[1727201658196,4.19474073,2641.1,2640.9,0.37867]
[1727201658393,0.98694073,2641.0,2640.9,0.37867]
[1727201659190,0.98694073,2641.0,2640.8,0.37868]
[1727201659392,0.98694073,2641.0,2640.9,0.37867]
[1727201659591,4.57340073,2641.1,2640.4,0.3741]
[1727201659798,0.98694073,2641.0,2640.4,0.3741]
[1727201660196,0.98694073,2641.0,2640.8,0.37869]
[1727201661505,0.37868,2640.9,2640.6,3.58651]
[1727201661706,1.36561073,2640.9,2640.6,3.58651]
[1727201661905,1.36562073,2640.9,2640.6,3.58651]
[1727201662393,1.36562073,2640.9,2640.6,0.37871]
[1727201662794,0.37871,2640.7,2640.4,0.75283]
[1727201663104,4.97224073,2640.8,2640.5,0.37872]
[1727201663307,3.9853,2640.8,2640.5,0.37872]
[1727201663502,4.97224073,2640.8,2640.5,0.37872]
[1727201663700,4.97224073,2640.8,2640.6,0.37871]
[1727201664204,4.59354073,2640.8,2640.4,0.3741]
[1727201664502,0.94665,2641.1,2640.4,3.5819]
[1727201664503,0.98694073,2640.9,2640.4,3.5819]
[1727201664806,4.19474073,2641.1,2641.0,0.37866]
[1727201665001,3.2078,2641.1,2641.0,0.37866]
[1727201666898,1.36557073,2641.2,2641.0,0.37866]
[1727201667407,1.36558073,2641.2,2641.0,0.37866]
[1727201667791,1.36558073,2641.2,2641.0,0.37865]
[1727201668195,0.37864,2641.2,2641.0,0.37865]
[1727201668401,0.37864,2641.2,2640.7,0.7536]
[1727201668594,0.37864,2641.2,2641.0,0.37865]
[1727201669799,0.37864,2641.2,2640.7,0.7536]
[1727201669800,2.11406073,2641.3,2641.1,0.37864]
[1727201670104,0.74712,2641.3,2640.7,4.90814]
[1727201670291,0.74712,2641.3,2641.1,0.37863]
[1727201670292,0.3685,2641.3,2641.1,0.37863]
[1727201670496,0.74712,2641.3,2641.1,0.37863]
[1727201670895,0.74712,2641.3,2640.7,3.9614]
[1727201670896,0.3685,2641.3,2640.7,3.9614]
[1727201671100,0.3685,2641.3,2641.2,0.37863]
[1727201671702,0.74712,2641.3,2641.1,0.37864]
[1727201671902,0.37864,2641.2,2640.7,3.9614]
[1727201672203,0.37864,2641.1,2641.0,0.37865]
[1727201672707,0.37864,2641.2,2641.0,0.37865]
[1727201673002,0.37866,2641.0,2640.9,0.37867]
[1727201673208,0.37866,2641.0,2640.8,0.37868]
[1727201673510,0.3783,2641.0,2640.5,0.3864]
[1727201673804,0.37869,2640.8,2640.7,0.3787]
[1727201674198,1.32497,2641.0,2640.5,0.3864]
[1727201674199,0.94671,2640.9,2640.5,0.3864]
[1727201674400,0.3787,2640.8,2640.6,0.37871]
[1727201674705,0.3787,2640.8,2640.6,0.3787]
[1727201674706,3.2078,2640.8,2640.6,0.3787]
[1727201674913,3.5865,2640.8,2640.7,0.3787]
[1727201675207,3.5865,2640.8,2640.6,0.3787]
[1727201675403,0.37871,2640.7,2640.5,0.3864]
[1727201675711,0.37871,2640.7,2640.6,0.37872]
[1727201675901,3.5865,2640.8,2640.6,0.37872]
[1727201676203,3.5865,2640.8,2640.7,0.3787]
[1727201676598,0.3787,2640.7,2640.6,0.37871]
[1727201677004,0.37869,2640.8,2640.7,0.3787]
[1727201677309,0.75697,2641.0,2640.8,0.37868]
[1727201677606,0.75697,2641.0,2640.9,0.37867]
[1727201677800,0.75696,2641.0,2640.5,1.33322]
[1727201678204,0.3783,2641.0,2640.9,0.37867]
[1727201678509,0.3685,2641.3,2640.6,0.9468]
[1727201678510,0.74713,2641.3,2641.1,0.37863]
[1727201678910,0.74713,2641.3,2641.2,0.37863]
[1727201679303,0.74712,2641.3,2641.2,0.37863]
[1727201679604,0.3685,2641.3,2641.2,0.37863]
[1727201680010,0.3685,2641.3,2641.0,0.37865]
[1727201680212,0.37865,2641.1,2640.9,0.37867]
[1727201680398,0.37865,2641.1,2640.7,3.2078]
[1727201680399,0.37865,2641.1,2641.0,0.37866]
[1727201680599,0.37865,2641.1,2640.9,0.37866]
[1727201681002,0.37864,2641.2,2641.0,0.37866]
[1727201681405,3.58644,2641.1,2640.9,0.37866]
[1727201681600,3.2078,2641.1,2640.9,0.37866]
[1727201681805,3.2078,2641.1,2640.5,0.3864]
[1727201682004,0.37868,2640.9,2640.5,0.3864]
[1727201682200,0.98694073,2641.0,2640.5,0.3864]
[1727201682400,0.3787,2640.8,2640.5,0.3864]
[1727201682599,0.37869,2640.8,2640.6,0.37871]
[1727201683004,0.98694073,2640.8,2640.6,0.37871]
[1727201683303,0.37872,2640.6,2640.2,0.37876]
[1727201683615,0.98889247,2640.6,2640.2,0.37876]
[1727201683908,3.58653,2640.5,2640.2,0.37876]
[1727201684108,3.58653,2640.5,2640.3,0.37876]
[1727201684109,4.19669247,2640.5,2640.3,0.37876]
[1727201684297,0.98889247,2640.5,2640.3,0.37875]
[1727201684501,0.98889247,2640.5,2640.2,0.37876]
[1727201685006,0.98889247,2640.5,2640.2,0.37877]
[1727201685210,0.98889247,2640.4,2640.2,0.37877]
[1727201686410,0.98889247,2640.3,2640.2,0.37877]
[1727201686608,0.98889247,2640.4,2640.2,0.37877]
[1727201686905,0.98889247,2640.4,2640.3,0.37876]
[1727201687104,1.48073833,2640.5,2640.3,0.37876]
[1727201687312,0.99050144,2640.4,2640.3,0.37876]
[1727201687611,1.48073833,2640.4,2640.3,0.37876]
[1727201688012,1.48073833,2640.4,2640.2,0.37877]
[1727201688313,0.99108801,2640.3,2640.2,3.03877]
[1727201688520,0.99144271,2640.3,2640.2,2.66]
[1727201688705,0.99144271,2640.3,2640.2,3.03877]
[1727201688911,1.48073833,2640.4,2640.3,0.37876]
[1727201689408,1.48073833,2640.4,2640.2,3.03877]
[1727201689609,1.48073833,2640.4,2640.3,0.37876]
[1727201689809,1.48073833,2640.4,2640.2,3.03877]
[1727201690010,1.48073833,2640.4,2640.3,0.37876]
[1727201690207,1.48073833,2640.5,2640.3,0.37876]
[1727201690711,0.37873,2640.6,2640.2,2.66]
[1727201690712,1.48073833,2640.4,2640.2,2.66]
[1727201691516,1.97502691,2640.6,2640.2,2.66]
[1727201691517,1.48073833,2640.3,2640.2,3.03877]
[1727201694724,1.48073833,2640.3,2640.2,6.82597]
[1727201694922,1.97502691,2640.4,2640.3,0.37876]
[1727201695119,1.48838799,2640.5,2640.4,0.94687]
[1727201695322,1.97502691,2640.8,2640.7,0.3787]
[1727201695521,2.47218245,2641.0,2640.9,0.37867]
[1727201695522,1.97502691,2641.0,2640.9,0.37867]
[1727201696015,1.97502691,2641.0,2640.9,3.03867]
[1727201696217,1.97502691,2641.0,2640.8,0.37868]
[1727201696432,1.97502691,2640.9,2640.8,0.37868]
[1727201697527,1.97502691,2640.9,2640.5,0.96553987]
[1727201697528,1.97502691,2641.0,2640.5,0.96553987]
[1727201697833,0.99224132,2640.6,2640.5,1.34426987]
[1727201698530,0.3639,2640.8,2640.7,0.3787]
[1727201698726,0.3639,2640.8,2640.4,6.6381]
[1727201698727,0.3639,2640.8,2640.6,0.37871]
[1727201699427,2.71762691,2640.8,2640.5,0.37873]
[1727201699624,2.71762691,2640.8,2640.4,6.6381]
[1727201699625,3.11242691,2640.8,2640.6,0.37871]
[1727201699943,2.73372691,2640.8,2640.6,0.37871]
[1727201700330,2.73372691,2640.8,2640.6,0.3787]
[1727201700825,3.11241691,2640.8,2640.6,0.3787]
[1727201701426,2.73372691,2640.8,2640.4,6.2509]
[1727201701625,0.99221503,2640.5,2640.4,7.59517987]
[1727201702030,0.99221503,2640.5,2640.4,11.38237987]
[1727201702228,0.99221503,2640.5,2640.4,7.59517987]
[1727201702425,0.3787,2640.7,2640.5,0.37872]
[1727201702622,0.37873,2640.5,2640.3,0.96553987]
[1727201702820,0.37873,2640.5,2640.3,0.37876]
[1727201703826,5.18282691,2640.6,2640.1,0.96553987]
[1727201704035,0.99233287,2640.2,2640.1,1.34432987]
[1727201704533,1.37110287,2640.2,2640.0,4.39872987]
[1727201704828,0.99233287,2640.1,2640.0,4.39872987]
[1727201705332,0.99233287,2640.1,2640.0,8.18672987]
[1727201705530,1.97502691,2640.4,2640.1,0.94698]
[1727201705721,1.97502691,2640.4,2640.3,6.24656]
[1727201705921,0.3876,2640.7,2640.4,0.37874]
[1727201705922,1.97502691,2640.5,2640.4,0.37874]
[1727201707432,0.37872,2640.6,2640.4,0.37874]
[1727201707636,2.85090245,2640.6,2640.4,0.37874]
[1727201707934,2.47218245,2640.6,2640.4,0.37873]
[1727201708433,2.47218245,2640.6,2640.3,3.2078]
[1727201708635,1.98439029,2640.4,2640.3,3.58656]
[1727201709232,3.81679245,2640.6,2640.2,0.37877]
[1727201709541,1.98445512,2640.3,2640.2,0.37877]
[1727201710030,1.98445512,2640.4,2640.3,0.37876]
[1727201710530,0.37874,2640.5,2640.3,0.37876]
[1727201710935,2.85092245,2640.5,2640.3,0.37876]
[1727201711642,0.37874,2640.4,2640.3,0.37876]
[1727201711829,0.37874,2640.4,2639.8,7.22802938]
[1727201711830,0.37881,2640.0,2639.5,0.99096938]
[1727201712030,0.37881,2640.0,2639.4,3.2078]
[1727201712031,1.98474188,2639.8,2639.4,3.2078]
[1727201712233,0.37887,2639.5,2639.4,3.2078]
[1727201713140,0.37889,2639.4,2639.1,0.99096938]
[1727201713341,0.99119752,2639.3,2639.2,0.37892]
[1727201713526,0.99119752,2639.3,2639.0,0.37894]
[1727201713527,1.37010752,2639.3,2639.0,0.37894]
[1727201713734,1.37010752,2639.3,2638.9,4.19876938]
[1727201713735,0.99119752,2639.3,2638.9,4.19876938]
[1727201714033,0.99119752,2639.0,2638.6,1.36996938]
[1727201714225,0.37897,2638.9,2638.6,1.36996938]
[1727201714437,0.37897,2638.9,2638.6,0.379]
[1727201714733,0.37899,2638.8,2638.5,6.24682]
[1727201714947,0.37899,2638.8,2638.5,5.8678]
[1727201715138,0.37898,2638.8,2638.5,6.24681]
[1727201715440,0.94736,2639.1,2638.7,2.66]
[1727201715441,0.37894,2639.1,2638.7,2.66]
[1727201715641,0.37894,2639.1,2638.8,3.58677]
[1727201715834,0.37895,2639.0,2638.7,3.03899]
[1727201716138,0.37895,2639.0,2638.7,5.8678]
[1727201716436,3.2078,2638.9,2638.3,3.58684]
[1727201716630,0.37901,2638.6,2638.3,3.58684]
[1727201717239,0.37901,2638.6,2638.3,3.2078]
[1727201717539,0.94749,2638.7,2638.3,3.2078]
[1727201717834,0.77343,2638.5,2638.2,3.58685]
[1727201718134,0.77342,2638.5,2638.2,0.37905]
[1727201718327,0.3944,2638.5,2638.3,0.37905]
[1727201718933,0.3944,2638.5,2638.3,0.37904]
[1727201719227,0.3944,2638.5,2638.3,2.66]
[1727201719429,0.3944,2638.5,2638.4,0.37903]
[1727201719631,0.3944,2638.5,2638.3,2.66]
[1727201719632,0.3624,2638.8,2638.3,2.66]
[1727201719844,4.19899752,2639.1,2638.5,5.8678]
[1727201720137,3.58674,2639.1,2638.8,0.37897]
[1727201720441,0.37895,2639.0,2638.7,3.03898]
[1727201720643,3.58674,2639.1,2638.8,0.37897]
[1727201720836,0.77932,2639.2,2638.9,0.37895]
[1727201721052,0.4004,2639.2,2639.1,0.37893]
[1727201721337,1.37006752,2639.6,2638.9,2.66]
[1727201721338,0.37888,2639.5,2639.2,0.37891]
[1727201721532,0.3923,2639.5,2639.3,0.3789]
[1727201721937,0.3923,2639.5,2639.2,2.66]
[1727201722139,0.3626,2639.6,2639.5,0.37887]
[1727201722340,0.3804,2639.8,2639.7,0.37884]
[1727201722639,0.3804,2640.2,2639.5,0.94719]
[1727201722834,1.35379752,2640.5,2640.0,3.2078]
[1727201723140,0.3626,2640.5,2640.3,0.37875]
[1727201724041,0.3626,2640.5,2640.2,0.37877]
[1727201724336,0.3626,2640.5,2640.3,0.37875]
[1727201725330,0.3626,2640.5,2640.0,3.2078]
[1727201725636,0.74133,2640.5,2640.2,0.37876]
[1727201726238,0.3626,2640.5,2640.2,0.37876]
[1727201726947,0.37875,2640.4,2640.1,0.37878]
[1727201727136,0.3626,2640.5,2640.0,3.2078]
[1727201727334,0.37875,2640.4,2640.1,0.37878]
[1727201727639,0.74134,2640.5,2640.2,0.37877]
[1727201728034,0.3626,2640.5,2640.3,0.37876]
[1727201728432,0.74134,2640.5,2640.3,0.37876]
[1727201729437,0.74134,2640.5,2640.2,0.37876]
[1727201729438,0.37874,2640.4,2640.2,0.37876]
[1727201729635,1.35379752,2640.5,2640.0,3.2078]
[1727201729836,0.3626,2640.5,2640.0,3.2078]
[1727201730037,0.37874,2640.4,2640.1,0.37879]
[1727201730438,0.37877,2640.3,2640.0,3.5866]
[1727201731049,0.37878,2640.2,2640.0,3.2078]
[1727201731540,3.2078,2640.3,2639.5,3.2078]
[1727201731734,0.3734,2640.1,2639.5,3.2078]
[1727201732534,0.7522,2640.1,2639.5,3.2078]
[1727201732940,0.3734,2640.1,2639.5,3.2078]
[1727201733142,0.3734,2640.1,2639.9,0.37881]
[1727201733438,0.99119752,2640.3,2639.5,4.15497]
[1727201733644,1.36994752,2640.4,2640.2,0.37877]
[1727201733841,0.37876,2640.3,2639.9,0.3868]
[1727201734151,4.57774752,2640.4,2640.2,0.37877]
[1727201734534,4.57774752,2640.4,2640.1,0.37878]
[1727201734739,4.19899752,2640.4,2640.2,0.37876]
[1727201735244,3.2078,2640.4,2640.2,0.37876]
[1727201735541,0.37881,2640.0,2639.8,3.607]
[1727201735738,0.3788,2640.1,2639.8,3.2078]
[1727201735943,0.3788,2640.0,2639.8,3.2078]
[1727201736338,0.37879,2640.1,2639.8,3.58662]
[1727201737142,0.37879,2640.1,2639.9,0.37881]
[1727201737648,0.37879,2640.1,2639.8,3.58662]
[1727201739037,0.37879,2640.1,2639.9,0.37881]
[1727201739239,0.37879,2640.1,2639.6,3.2078]
[1727201739240,4.19899752,2640.3,2640.1,0.37878]
[1727201739440,0.37875,2640.4,2639.9,3.2078]
[1727201739647,1.73253752,2640.5,2640.2,0.37877]
[1727201739947,0.37877,2640.3,2640.0,0.3832]
[1727201740451,0.37877,2640.3,2640.1,0.37879]
[1727201740651,0.37877,2640.3,2640.0,0.76199]
[1727201740951,0.37877,2640.3,2640.1,0.37878]
[1727201741342,3.2078,2640.4,2640.1,0.37879]
[1727201741651,3.58655,2640.4,2640.0,0.3832]
[1727201741848,3.58655,2640.4,2640.2,0.37877]
[1727201742042,3.58655,2640.4,2640.0,0.3832]
[1727201742043,0.3626,2640.5,2640.4,0.37874]
[1727201742441,0.74133,2640.5,2640.3,0.37875]
[1727201742644,0.3626,2640.5,2640.1,0.3796]
[1727201742844,0.99119752,2640.3,2640.2,3.58657]
[1727201743142,0.99119752,2640.3,2640.2,0.37877]
[1727201743442,0.37876,2640.4,2640.2,0.37877]
[1727201744236,0.37878,2640.2,2640.0,0.3788]
[1727201744745,0.37881,2640.0,2639.8,0.37883]
[1727201744940,0.37881,2640.0,2639.7,0.75473]
[1727201744941,0.3788,2640.0,2639.7,0.75473]
[1727201745139,0.3862,2640.1,2639.7,0.75473]
[1727201745140,0.98628434,2639.8,2639.7,0.75473]
[1727201746244,0.98628434,2639.9,2639.8,0.37883]
[1727201746544,3.2078,2640.0,2639.9,0.37882]
[1727201746934,1.98261103,2640.2,2639.7,3.0359]
[1727201747136,1.98261103,2640.4,2640.1,0.37879]
[1727201747342,2.36137103,2640.4,2640.1,0.37879]
[1727201747548,2.36137103,2640.4,2640.2,0.37877]
[1727201747750,2.36137103,2640.4,2640.1,0.37878]
[1727201747947,0.37876,2640.3,2640.1,0.37878]
[1727201748146,2.34521103,2640.5,2640.2,0.37877]
[1727201748549,1.98261103,2640.4,2640.2,0.37877]
[1727201749244,2.36136103,2640.4,2639.9,0.3805]
[1727201749451,2.72395103,2640.5,2640.2,0.37877]
[1727201750349,2.34521103,2640.5,2640.1,0.37878]
[1727201750551,2.34521103,2640.5,2639.9,0.3805]
[1727201750552,1.98261103,2640.4,2640.2,0.37877]
[1727201751054,1.72836671,2640.5,2639.9,0.3805]
[1727201751348,1.72836671,2640.5,2640.2,0.37876]
[1727201751557,1.72836671,2640.5,2639.9,0.3805]
[1727201751558,1.72836671,2640.5,2640.3,0.37876]
[1727201751851,1.72836671,2640.5,2640.2,0.37877]
[1727201752256,0.37875,2640.4,2640.2,0.37877]
[1727201752553,0.37876,2640.4,2640.2,0.37876]
[1727201752748,0.37876,2640.3,2640.1,0.37878]
[1727201752952,0.37877,2640.2,2639.8,3.2078]
[1727201753146,0.37878,2640.2,2640.0,0.37879]
[1727201753350,0.3788,2640.1,2639.9,0.37881]
[1727201753746,0.3788,2640.0,2639.7,0.3759]
[1727201753941,0.98702671,2640.3,2639.7,0.3759]
[1727201753942,0.37878,2640.2,2639.7,0.3759]
[1727201754142,0.37879,2640.1,2639.7,0.3759]
[1727201754346,0.98702671,2640.3,2640.0,0.37879]
[1727201754547,1.93394671,2640.3,2639.9,0.37881]
[1727201754857,0.3788,2640.1,2639.9,0.37881]
[1727201755151,0.3788,2640.1,2640.0,0.3788]
[1727201755649,0.37879,2640.1,2639.7,4.53081]
[1727201755851,0.37879,2640.1,2640.0,0.3788]
[1727201756152,0.37878,2640.2,2640.1,0.37878]
[1727201756358,0.37879,2640.1,2639.7,3.5837]
[1727201756563,0.37879,2640.1,2640.0,0.3788]
[1727201756849,0.98702671,2640.3,2639.7,3.5837]
[1727201756850,0.37878,2640.2,2639.7,3.5837]
[1727201757051,1.93394671,2640.3,2639.9,0.37881]
[1727201757355,1.93394671,2640.3,2639.7,3.5837]
[1727201757356,3.5866,2640.1,2639.7,3.5837]
[1727201757548,4.1548,2640.1,2639.7,3.5837]
[1727201757750,0.37882,2639.9,2639.8,0.37883]
[1727201757950,1.85933599,2639.9,2639.8,0.37883]
[1727201758555,1.48051599,2640.0,2639.9,0.37882]
[1727201758954,1.48084256,2640.1,2640.0,0.3788]
[1727201760654,5.26884256,2640.1,2640.0,0.3788]
[1727201760853,5.26908974,2640.1,2640.0,0.3788]
[1727201761055,5.26908974,2640.1,2639.7,0.3759]
[1727201761056,2.36138103,2640.3,2640.1,0.37879]
[1727201761556,0.37877,2640.2,2640.1,0.37879]
[1727201761751,1.98261103,2640.2,2639.8,0.94707]
[1727201761955,0.98785242,2639.9,2639.8,1.3259]
[1727201762560,1.48177863,2640.0,2639.9,0.37882]
[1727201764171,0.37877,2640.3,2640.1,0.37879]
[1727201764351,0.37877,2640.3,2640.2,0.37877]
[1727201764663,6.26812735,2640.3,2640.1,0.37878]
[1727201764961,2.85968735,2640.3,2640.2,0.37877]
[1727201765467,0.37879,2640.1,2639.9,0.37881]
[1727201765666,0.37879,2640.1,2640.0,0.3788]
[1727201765667,2.47681836,2640.1,2640.0,0.3788]
[1727201765866,2.36057759,2640.2,2640.0,0.3788]
[1727201766167,3.2078,2640.1,2640.0,0.3788]
[1727201766467,5.18959759,2640.1,2640.0,0.3788]
[1727201766661,1.98179759,2640.2,2640.0,1.32581]
[1727201766865,1.98179759,2640.2,2640.1,7.98244829]
[1727201766866,0.9922281,2640.2,2640.1,7.98244829]
[1727201767163,0.9922281,2640.4,2640.3,2.27256]
[1727201767356,0.9922281,2640.4,2640.3,5.38571848]
[1727201767562,0.37872,2640.6,2640.4,0.37874]
[1727201767871,4.16594,2640.5,2640.3,0.37875]
[1727201768076,1.98494634,2640.5,2640.2,1.37935378]
[1727201768372,1.48863868,2640.3,2640.2,2.70506378]
[1727201768577,1.98494634,2640.5,2640.4,0.37874]
[1727201768775,1.98494634,2640.7,2640.6,0.37872]
[1727201769372,1.98494634,2640.8,2640.7,0.3787]
[1727201769960,1.98494634,2640.8,2640.6,0.3958]
[1727201770471,1.98494634,2640.8,2640.7,0.3787]
[1727201771564,1.98494634,2640.9,2640.8,0.37869]
[1727201771772,1.98494634,2641.0,2640.9,0.37867]
[1727201772170,1.10394,2641.2,2640.9,0.37867]
[1727201772171,2.36358634,2641.1,2640.9,0.37867]
[1727201772669,1.984039,2641.0,2640.8,0.37868]
[1727201772877,1.984039,2640.9,2640.8,0.37869]
[1727201773875,1.48750931,2641.0,2640.9,0.94669]
[1727201774072,0.99165481,2641.0,2640.9,10.97841759]
[1727201774278,0.99105404,2641.2,2640.9,6.4464]
[1727201774474,0.99105404,2641.0,2640.9,0.37867]
[1727201774865,0.99105404,2641.0,2640.8,3.2078]
[1727201775068,1.36972404,2640.9,2640.8,3.2078]
[1727201775273,1.48750931,2640.9,2640.6,0.3958]
[1727201775575,1.48750931,2640.9,2640.8,0.37869]
[1727201776083,1.48750931,2641.0,2640.9,0.37867]
[1727201776277,1.984039,2641.2,2641.0,0.37866]
[1727201776278,0.9906134,2641.1,2641.0,0.37866]
[1727201776481,0.9906134,2641.1,2640.9,7.39309]
[1727201776482,1.48750931,2641.2,2641.1,0.37864]
[1727201776982,1.48750931,2641.2,2641.0,0.37865]
[1727201777169,1.48750931,2641.2,2641.1,0.37864]
[1727201777576,1.48750931,2641.3,2641.2,0.37863]
[1727201778275,3.152129,2641.5,2641.2,2.66]
[1727201778276,1.48750931,2641.5,2641.2,2.66]
[1727201778472,1.48750931,2641.5,2641.4,0.3786]
[1727201779181,1.48750931,2641.6,2641.5,0.37859]
[1727201779383,1.86608931,2641.6,2641.4,0.37859]
[1727201779578,1.48750931,2641.5,2641.4,0.37859]
[1727201779976,1.16397,2641.7,2641.4,0.37859]
[1727201779977,2.47681836,2641.6,2641.4,0.37859]
[1727201780169,3.64078836,2641.7,2641.1,3.2078]
[1727201780373,1.48406411,2641.2,2641.1,3.58644]
[1727201780783,1.48406411,2641.2,2641.1,7.37284]
[1727201781700,1.48406411,2641.2,2641.1,3.58644]
[1727201782181,1.48406411,2641.3,2641.2,0.37863]
[1727201782386,1.48406411,2641.3,2640.7,3.2078]
[1727201782387,5.8678,2641.3,2640.7,3.2078]
[1727201782680,5.8678,2641.3,2640.8,0.37869]
[1727201782681,1.48346499,2640.9,2640.8,0.37869]
[1727201782881,1.48346499,2640.9,2640.7,3.2078]
[1727201783085,0.37868,2640.9,2640.7,3.2078]
[1727201783276,2.35662332,2641.0,2640.7,3.5865]
[1727201783583,2.35662332,2641.0,2640.8,0.37868]
[1727201784080,2.35661332,2641.0,2640.8,0.37869]
[1727201784480,1.97795332,2640.9,2640.8,0.37869]
[1727201784685,1.97795332,2641.0,2640.7,3.58649]
[1727201784877,1.48362209,2640.8,2640.7,3.58649]
[1727201785983,1.48351704,2640.9,2640.8,0.37869]
[1727201786372,2.35660332,2641.1,2640.9,0.37867]
[1727201786875,1.97795332,2641.0,2640.9,0.37867]
[1727201787080,2.74475332,2641.2,2641.1,0.37864]
[1727201787581,0.7668,2641.2,2641.1,0.37864]
[1727201787775,2.74475332,2641.2,2641.1,0.37864]
[1727201787977,0.7668,2641.2,2641.1,0.37864]
[1727201788884,4.1966404,2641.3,2641.2,0.37863]
[1727201789278,7.9830404,2641.3,2640.9,0.37866]
[1727201789480,0.37868,2640.9,2640.7,3.962]
[1727201789682,0.37867,2641.0,2640.8,0.37869]
[1727201789884,1.16587,2641.0,2640.8,0.37869]
[1727201790285,2.1547104,2641.0,2640.9,0.37867]
[1727201790582,0.7872,2641.0,2640.9,0.37867]
[1727201791291,0.7872,2641.0,2640.7,3.5833]
[1727201791589,2.1547104,2641.0,2640.8,0.37868]
[1727201791883,1.16587,2641.0,2640.9,0.37867]
[1727201792087,0.37868,2640.9,2640.7,3.5833]
[1727201792385,0.37868,2640.9,2640.8,0.37869]
[1727201792685,1.16587,2641.0,2640.9,0.37867]
[1727201792989,0.37868,2640.9,2640.8,0.37868]
[1727201793589,2.1547004,2641.0,2640.9,0.37867]
[1727201794182,1.16586,2641.0,2640.9,0.37867]
[1727201794388,0.7872,2641.0,2640.9,0.37867]
[1727201794585,0.9888404,2641.1,2641.0,0.37866]
[1727201794884,0.9888404,2641.1,2641.0,0.37865]
[1727201794885,0.37865,2641.1,2641.0,0.37865]
[1727201795484,1.97795332,2641.2,2641.1,0.37864]
[1727201796185,2.74345332,2641.3,2641.2,0.37863]
[1727201796381,1.14412,2641.3,2641.2,0.37863]
[1727201797182,0.7655,2641.3,2641.2,0.37863]
[1727201798487,1.48350576,2641.3,2641.2,0.37863]
[1727201799492,0.37861,2641.4,2641.2,0.37863]
[1727201799680,0.37862,2641.3,2641.1,0.37864]
[1727201799880,1.48364923,2641.2,2641.1,0.37864]
[1727201803289,0.98915322,2641.3,2641.2,0.37863]
[1727201803495,0.98915322,2641.4,2641.3,0.37862]
[1727201804693,1.48364923,2641.5,2641.4,0.3786]
[1727201804889,0.3849,2641.6,2641.5,0.37859]
[1727201804890,1.86854923,2641.6,2641.5,0.37859]
[1727201805085,2.24713923,2641.6,2641.4,0.3786]
[1727201805496,1.48364923,2641.5,2641.0,0.3734]
[1727201805686,1.3680627,2641.2,2641.0,0.75205]
[1727201805881,0.37864,2641.1,2641.0,0.75205]
[1727201806096,0.9894227,2641.1,2641.0,0.75205]
[1727201806293,2.24916923,2641.3,2641.1,0.37864]
[1727201806483,0.98942839,2641.2,2641.1,0.37864]
[1727201806689,0.98942434,2641.2,2641.1,0.37864]
[1727201806893,1.36805434,2641.2,2641.1,0.37864]
[1727201807192,2.24916923,2641.3,2641.1,0.37864]
[1727201807393,1.86227923,2641.2,2641.1,0.37864]
[1727201807591,1.48364923,2641.2,2640.6,3.2078]
[1727201807793,0.37874,2640.4,2640.2,0.3652]
[1727201808096,0.37874,2640.4,2639.8,1.48867184]
[1727201808097,0.37881,2640.0,2639.8,0.37882]
[1727201808297,1.48420319,2640.3,2639.7,0.37883]
[1727201808298,0.98935408,2639.9,2639.7,0.37883]
[1727201808502,0.98935408,2639.9,2639.8,0.37883]
[1727201809288,1.48403112,2640.1,2639.9,0.37882]
[1727201809289,0.98935408,2640.0,2639.9,0.37882]
[1727201809592,1.48403112,2640.1,2639.8,0.37882]
[1727201809794,0.98923884,2640.0,2639.9,3.03882]
[1727201809997,1.48403112,2640.2,2639.9,2.66]
[1727201809998,0.98923884,2640.1,2639.9,2.66]
[1727201810201,0.98923884,2640.1,2639.7,2.66]
[1727201810499,0.98923884,2640.1,2639.8,0.37882]
[1727201810704,0.98923884,2640.0,2639.7,2.66]
[1727201810994,0.98923884,2640.0,2639.8,0.37882]
[1727201811594,0.98923884,2640.0,2639.9,0.37882]
[1727201812690,0.98923884,2640.0,2639.8,0.37882]
[1727201812894,0.98923884,2640.0,2639.9,0.37882]
[1727201813800,0.98923884,2640.0,2639.7,2.66]
[1727201814000,0.98923884,2639.9,2639.5,3.2078]
[1727201814206,6.81474,2640.2,2639.5,3.2078]
[1727201814207,0.37884,2639.7,2639.5,3.2078]
[1727201814501,0.37886,2639.6,2639.5,3.2078]
[1727201814702,0.37889,2639.4,2639.1,0.37893]
[1727201814897,0.382,2639.3,2639.1,0.37893]
[1727201815203,0.382,2639.3,2639.2,0.37892]
[1727201816005,4.96062052,2639.6,2639.2,0.37892]